fUST/lending_fUST_20250824
["ID","MTS","AMOUNT","RATE_DAILY","PERIOD"]
[381051807,1755975951317,279.24281961,0.00028533,10]
[381051808,1755975972817,-300.0,0.00029199,2]
[381051810,1755976009343,162.54304105,0.000291,2]
[381051811,1755976012803,-500.0,0.00029199,2]
[381051812,1755976012833,-500.0,0.00029199,2]
[381051813,1755976012862,-184.69148663,0.00029199,2]
[381051814,1755976012890,-1200.0,0.00029199,2]
[381051815,1755976032826,-300.0,0.00029199,2]
[381051816,1755976074395,210.12636785,0.00029109,2]
[381051817,1755976077361,514.62,0.0002919,3]
[381051818,1755976088097,257.31,0.0002919,3]
[381051820,1755976092902,-300.0,0.00029199,2]
[381051821,1755976093768,164.628819,0.00013699,2]
[381051822,1755976113519,771.97,0.0002919,3]
[381051823,1755976117807,227.68484119,0.000199,2]
[381051824,1755976117868,227.68484113,0.0002508,2]
[381051825,1755976117923,227.68484113,0.00026806,6]
[381051826,1755976117983,227.68484113,0.00028533,10]
[381051827,1755976118039,30.61548965,0.00021627,2]
[381051828,1755976118072,197.06935148,0.00021627,2]
[381051829,1755976118623,227.68484113,0.00023353,2]
[381051831,1755976148854,155.0,0.00029194,2]
[381051832,1755976152982,-300.0,0.00029199,2]
[381051833,1755976213102,-300.0,0.00029199,2]
[381051834,1755976213129,-300.0,0.00029199,2]
[381051835,1755976213157,-300.0,0.00029199,2]
[381051836,1755976213185,-1200.0,0.00029199,2]
[381051837,1755976213213,-300.0,0.00029199,2]
[381051838,1755976213241,-300.0,0.00029199,2]
[381051868,1755976231889,-639.58423946,0.000292,30]
[381051870,1755976231901,-1800.22766049,0.000292,30]
[381051876,1755976231942,-99363.14839816,0.000292,30]
[381051878,1755976231954,-19223.213024,0.000292,30]
[381051880,1755976231966,-13898.50153323,0.000292,30]
[381051882,1755976231978,-710.17380002,0.000292,30]
[381051885,1755976231990,-23096.26138104,0.000292,30]
[381051887,1755976232000,-250.0,0.00029209,10]
[381051889,1755976232010,-151.0,0.00029495,2]
[381051891,1755976232020,-155.15271689,0.00029837,2]
[381051893,1755976232030,-168.0,0.00029937,2]
[381051894,1755976232039,-227.68484113,0.00030259,13]
[381051897,1755976232049,-1029.24,0.0003056,3]
[381051898,1755976232058,-514.62,0.0003056,3]
[381051901,1755976232068,-155.0,0.00031,120]
[381051903,1755976232077,-1107.0,0.00031496,3]
[381051906,1755976232087,-420.0,0.00031496,2]
[381051909,1755976232096,-227.68484113,0.00031986,17]
[381051911,1755976232105,-163.098229,0.00032273,7]
[381051913,1755976232115,-155.0,0.000333,120]
[381051915,1755976232124,-227.68484113,0.00033712,21]
[381051917,1755976232134,-210.0,0.00033974,2]
[381051919,1755976232143,-358.54667446,0.00034031,7]
[381051921,1755976232153,-973.0,0.00034033,2]
[381051923,1755976232162,-2154.0,0.00034033,2]
[381051925,1755976232172,-637.0,0.00034033,2]
[381051927,1755976232182,-408.0,0.00034103,2]
[381051929,1755976232191,-577.0168424,0.00034463,30]
[381051931,1755976232201,-210.12636783,0.00034504,2]
[381051933,1755976232210,-1160.2841171,0.00035036,30]
[381051935,1755976232220,-581.3595559,0.00035036,30]
[381051937,1755976232230,-153.0,0.00035036,30]
[381051939,1755976232240,-587.4228687,0.00035036,30]
[381051941,1755976232250,-581.3595559,0.00035036,30]
[381051943,1755976232260,-153.0,0.00035036,30]
[381051945,1755976232269,-153.0,0.00035036,30]
[381051947,1755976232279,-581.1080994,0.00035036,30]
[381051949,1755976232288,-306.0,0.00035036,30]
[381051951,1755976232298,-294.1207637,0.00035036,30]
[381051953,1755976232308,-160.9697672,0.00035036,30]
[381051955,1755976232318,-160.9697672,0.00035036,30]
[381051957,1755976232328,-294.1207637,0.00035036,30]
[381051959,1755976232338,-160.4626264,0.00035048,30]
[381051961,1755976232348,-293.5633568,0.00035048,30]
[381051963,1755976232358,-160.9697672,0.00035048,30]
[381051965,1755976232368,-294.1207637,0.00035048,30]
[381051967,1755976232378,-157.9125841,0.00035048,30]
[381051969,1755976232387,-153.0,0.00035048,30]
[381051971,1755976232397,-153.0,0.00035048,30]
[381051974,1755976232407,-153.0,0.00035048,30]
[381051975,1755976232416,-153.0,0.00035048,30]
[381051977,1755976232425,-160.0,0.00035132,2]
[381051979,1755976232435,-1162.7191118,0.00035285,30]
[381051981,1755976232444,-306.0,0.00035285,30]
[381051984,1755976232454,-581.3595559,0.00035285,30]
[381051986,1755976232464,-160.9697672,0.00035285,30]
[381051987,1755976232473,-500.0,0.00035322,30]
[381051990,1755976232483,-227.68484113,0.00035439,24]
[381051992,1755976232494,-155.0,0.000355,120]
[381051994,1755976232511,-500.0,0.00035596,30]
[381051996,1755976232522,-200.0,0.0003568,2]
[381051998,1755976232532,-408.0,0.00037103,2]
[381052000,1755976232542,-227.68484113,0.00037166,28]
[381052002,1755976232552,-324.132,0.00037307,48]
[381052004,1755976232562,-155.0,0.000378,120]
[381052005,1755976232573,-500.0,0.00038153,7]
[381052008,1755976232589,-164.628819,0.00038356,2]
[381052009,1755976232600,-227.68484113,0.00038892,32]
[381052012,1755976232610,-500.0,0.0003953,7]
[381052014,1755976232620,-210.12636783,0.000399,2]
[381052016,1755976232629,-151.0,0.00039999,14]
[381052017,1755976232639,-160.0,0.0004,3]
[381052019,1755976232648,-160.0,0.0004,5]
[381052021,1755976232657,-155.0,0.000401,120]
[381052024,1755976232668,-408.0,0.00040103,2]
[381052026,1755976232678,-5907.33206523,0.00040232,75]
[381052028,1755976232688,-151.0,0.00040273,14]
[381052030,1755976232697,-227.68484113,0.00040619,36]
[381052032,1755976232707,-500.0,0.00041096,31]
[381052034,1755976232716,-346.26679377,0.00041096,31]
[381052035,1755976232725,-155.0,0.000423,120]
[381052036,1755976232735,-646.0,0.000425,30]
[381052037,1755976232744,-451.28,0.000425,7]
[381052038,1755976232754,-500.0,0.00042869,30]
[381052039,1755976232763,-408.0,0.00043103,2]
[381052040,1755976232773,-227.68484113,0.00044072,43]
[381052041,1755976232782,-155.0,0.000446,120]
[381052042,1755976232791,-500.0,0.00045125,30]
[381052043,1755976232801,-210.12636783,0.00045295,2]
[381052044,1755976232810,-500.0,0.0004543,30]
[381052045,1755976232820,-227.68484113,0.00045798,47]
[381052046,1755976232830,-408.0,0.00046103,2]
[381052047,1755976232839,-155.0,0.000469,120]
[381052048,1755976232849,-1142.4,0.000469,14]
[381052049,1755976232859,-500.0,0.00046986,60]
[381052050,1755976232868,-199.0,0.00047397,30]
[381052051,1755976232877,-500.0,0.000475,30]
[381052052,1755976232887,-227.68484113,0.00047525,50]
[381052053,1755976232983,-500.0,0.00047534,60]
[381052054,1755976232992,-500.0,0.00047833,10]
[381052055,1755976233002,-500.0,0.00048025,7]
[381052056,1755976233011,-500.0,0.00048082,60]
[381052057,1755976233020,-451.28,0.000486,7]
[381052058,1755976233030,-500.0,0.0004863,60]
[381052059,1755976233040,-503.58801118,0.00049,60]
[381052060,1755976233050,-155.0,0.000491,120]
[381052061,1755976233059,-408.0,0.00049103,2]
[381052062,1755976233069,-227.68484113,0.00049251,54]
[381052063,1755976233078,-1000.0,0.00049338,90]
[381052064,1755976233087,-1142.4,0.000494,14]
[381052065,1755976233098,-500.0,0.00049726,60]
[381052066,1755976233107,-199.0,0.000499,120]
[381052067,1755976233117,-199.0,0.000499,120]
[381052068,1755976233127,-211.0,0.0004999,30]
[381052069,1755976233137,-500.0,0.00049997,120]
[381052070,1755976233147,-79004.46,0.00049998,30]
[381052071,1755976233156,-159.35367535,0.00049999,120]
[381052072,1755976233167,-17361.9047621,0.0005,120]
[381052073,1755976233192,-3259.19113425,0.0005,120]
[381052281,1755976235528,199.0,0.000291,30]
[381052357,1755976237816,-151.0,0.00031496,2]
[381052358,1755976237826,-151.0,0.00034504,2]
[381052359,1755976237836,-151.0,0.00038356,2]
[381052360,1755976237845,-114.95000424,0.00040103,2]
[381052361,1755976237856,-36.04999576,0.00040103,2]
[381052362,1755976237866,-151.0,0.00046103,2]
[381052363,1755976237875,-151.0,0.00046103,2]
[381052364,1755976237885,-11166.908323,0.0005,120]
[381052365,1755976237895,-492.97604351,0.0005,120]
[381052366,1755976237905,-500.0,0.0005,30]
[381052367,1755976237914,-150.248219,0.0005,2]
[381052368,1755976237924,-500.0,0.0005,30]
[381052370,1755976237933,-210.12636783,0.0005069,2]
[381052371,1755976237943,-9297.17343793,0.000507,120]
[381052372,1755976237954,-1106.53253202,0.000507,120]
[381052373,1755976237969,-26038.17014882,0.000507,120]
[381052374,1755976237978,-500.0,0.00050773,10]
[381052375,1755976237988,-510.08515141,0.00050773,10]
[381052376,1755976237999,-500.0,0.00050773,10]
[381052377,1755976238008,-500.0,0.00050773,10]
[381052378,1755976238017,-500.0,0.00050773,10]
[381052379,1755976238026,-54418.20641955,0.000508,2]
[381052380,1755976238038,-5261.10802629,0.000508,2]
[381052392,1755976239915,-199.0,0.000309,120]
[381052395,1755976239931,-91.35700693,0.000508,2]
[381052504,1755976242978,-38522.65461765,0.000508,2]
[381052506,1755976243042,-379.99698523,0.000508,2]
[381052507,1755976243096,-494.3173247,0.000508,2]
[381052541,1755976245924,-1544.86779056,0.000508,2]
[381052543,1755976245935,-470.8,0.000508,2]
[381052550,1755976246029,-1370.86428889,0.000508,2]
[381052551,1755976246045,-1066.6639087,0.000508,2]
[381052561,1755976250461,160.0,0.000292,30]
[381052563,1755976287603,394.6537246,0.0002249,2]
[381052564,1755976287635,394.6537246,0.00025943,4]
[381052565,1755976287677,394.6537246,0.00024216,2]
[381052566,1755976287730,394.6537246,0.00027669,8]
[381052567,1755976287763,591.98058709,0.00025943,4]
[381052568,1755976302297,500.0,0.00029199,2]
[381052569,1755976302604,500.0,0.00029199,2]
[381052570,1755976302965,500.0,0.00029199,2]
[381052571,1755976303528,500.0,0.00029199,2]
[381052572,1755976303824,500.0,0.00029199,2]
[381052573,1755976304212,500.0,0.00029199,2]
[381052574,1755976304303,500.0,0.00029199,2]
[381052575,1755976304341,500.0,0.00029199,2]
[381052576,1755976304396,500.0,0.00029199,2]
[381052577,1755976304508,200.0,0.00029199,2]
[381052578,1755976306461,500.0,0.00029199,2]
[381052579,1755976306735,500.0,0.00029199,2]
[381052580,1755976306792,500.0,0.00029199,2]
[381052581,1755976307812,626.94,0.00029199,2]
[381052582,1755976309493,444.18294556,0.00029199,2]
[381052583,1755976309571,500.0,0.00029199,2]
[381052584,1755976309624,500.0,0.00029199,2]
[381052585,1755976309674,390.53220689,0.00029199,2]
[381052586,1755976322587,500.0,0.00029199,2]
[381052587,1755976322622,500.0,0.00029199,2]
[381052588,1755976322650,500.0,0.00029199,2]
[381052589,1755976322791,609.66389606,0.00029199,2]
[381052590,1755976322829,500.0,0.00029199,2]
[381052591,1755976322871,500.0,0.00029199,2]
[381052592,1755976322906,500.0,0.00029199,2]
[381052593,1755976322934,500.0,0.00029199,2]
[381052595,1755976453566,210.4819864,0.00024216,2]
[381052596,1755976453619,368.3434764,0.0002249,2]
[381052597,1755976498013,270.528331,0.00025778,2]
[381052598,1755976498370,266.76876133,0.00026044,2]
[381052599,1755976502770,500.0,0.00029199,2]
[381052600,1755976503139,8962.71290767,0.00019599,2]
[381052601,1755976503160,1037.28709233,0.00019599,2]
[381052602,1755976689789,1433.0,0.00027397,120]
[381052603,1755976818715,151.0,0.00029199,2]
[381052608,1755977063370,168.0,0.0003059,2]
[381052609,1755977064777,151.0,0.0003059,2]
[381052610,1755977117106,151.0,0.0003059,2]
[381052611,1755977118384,314.94538272,0.000199,2]
[381052612,1755977118427,314.94538249,0.00030259,13]
[381052613,1755977118466,314.94538249,0.0002508,2]
[381052614,1755977118594,314.94538249,0.00023353,2]
[381052615,1755977118961,314.94538249,0.00026806,6]
[381052616,1755977118998,314.94538249,0.00021627,2]
[381052617,1755977119243,314.94538249,0.00028533,10]
[381052618,1755977147079,164.628819,0.00013699,2]
[381052619,1755977270189,10000.01,0.00018,2]
[381052620,1755977270224,10000.01,0.00018,2]
[381052621,1755977270260,9835.381181,0.00018,2]
[381052622,1755977270293,7644.39232234,0.00018,2]
[381052623,1755977270328,9681.01,0.00018,2]
[381052624,1755977270361,8416.01,0.00018,2]
[381052625,1755977270396,8383.89744487,0.00018,2]
[381052626,1755977270430,5890.34610394,0.00018,2]
[381052627,1755977270466,1338.35484755,0.00018,2]
[381052628,1755977270501,7829.41451451,0.00018,2]
[381052629,1755977270537,9641.01,0.00018,2]
[381052630,1755977270573,9845.01,0.00018,2]
[381052631,1755977270608,4273.25580739,0.00018,2]
[381052632,1755977270644,0.01,0.00018,2]
[381052633,1755977270801,4000.01,0.00018,2]
[381052634,1755977270823,1100.50193276,0.00018,2]
[381052635,1755977270846,3500.01,0.00018,2]
[381052636,1755977270868,5000.01,0.00018,2]
[381052637,1755977270891,0.01,0.00018,2]
[381052638,1755977270914,3781.70745243,0.00018,2]
[381052639,1755977270936,5000.01,0.00018,2]
[381052640,1755977270958,5000.01,0.00018,2]
[381052641,1755977270980,0.01,0.00018,2]
[381052642,1755977271002,5000.01,0.00018,2]
[381052643,1755977271023,3711.70762072,0.00018,2]
[381052644,1755977271046,0.01,0.00018,2]
[381052645,1755977271071,4511.41342648,0.00018,2]
[381052646,1755977271092,2804.72509032,0.00018,2]
[381052647,1755977273986,2195.28490968,0.00018,2]
[381052648,1755977274009,5000.01,0.00018,2]
[381052649,1755977274030,0.01,0.00018,2]
[381052650,1755977274051,2357.21547752,0.00018,2]
[381052651,1755977285246,301.64989488,0.000199,2]
[381052652,1755977285512,301.64989469,0.00023353,2]
[381052653,1755977285614,301.64989469,0.00021627,2]
[381052658,1755977293512,417.05696988,0.00010618,2]
[381052659,1755977295324,10000.01,0.000125,2]
[381052660,1755977295364,1435.16195181,0.000125,2]
[381052661,1755977295896,-272.36045322,0.00028533,10]
[381052663,1755977308898,283.99907842,0.0001,2]
[381052664,1755977313950,8280.84896977,0.00017,2]
[381052665,1755977313979,8678.00334586,0.00017,2]
[381052666,1755977314001,2642.79452248,0.00017,2]
[381052667,1755977314025,4206.70211352,0.00017,2]
[381052668,1755977314050,4267.11513972,0.00017,2]
[381052669,1755977314072,0.01,0.00017,2]
[381052670,1755977314095,5000.01,0.00017,2]
[381052671,1755977314122,8840.49691038,0.00017,2]
[381052672,1755977314144,9835.381183,0.00017,2]
[381052673,1755977314167,5000.01,0.00017,2]
[381052674,1755977314190,8758.99244074,0.00017,2]
[381052675,1755977314213,877.47763821,0.00017,2]
[381052676,1755977314237,9655.55255044,0.00017,2]
[381052677,1755977314259,4796.49829765,0.00017,2]
[381052678,1755977314283,5000.01,0.00017,2]
[381052679,1755977314305,4676.24271012,0.00017,2]
[381052680,1755977314328,2276.81572272,0.00017,2]
[381052681,1755977316469,10000.01,0.00025,2]
[381052682,1755977316492,10000.01,0.00025,2]
[381052683,1755977316530,754.702113,0.00025,2]
[381052684,1755977316557,9676.2627101,0.00025,2]
[381052685,1755977316581,0.01,0.00025,2]
[381052686,1755977316606,282.22989722,0.00025,2]
[381052687,1755977316630,4838.12635505,0.00025,2]
[381052688,1755977316652,4192.57217654,0.00025,2]
[381052689,1755977316675,8942.5117423,0.00025,2]
[381052690,1755977317946,583.36035691,0.000149,2]
[381052691,1755977318123,1000.0,0.0001,2]
[381052692,1755977318894,7293.69179993,0.00018,2]
[381052693,1755977318916,4326.39638194,0.00018,2]
[381052694,1755977318939,9371.63021449,0.00018,2]
[381052695,1755977319080,8431.6625344,0.00018,2]
[381052696,1755977323715,17541.05106872,0.0001,2]
[381052697,1755977324190,-199.02237085,0.00025,2]
[381052698,1755977325280,1721.64548708,0.0001,2]
[381052699,1755977325875,45122.16253287,0.00019063,2]
[381052700,1755977345136,-300.0,0.00024999,2]
[381052701,1755977345158,-17445.16826296,0.00025,2]
[381052734,1755977432204,-235.15555361,0.000249,2]
[381052735,1755977432213,-300.0,0.00024999,2]
[381052737,1755977432223,-300.0,0.00024999,2]
[381052738,1755977432232,-300.0,0.00024999,2]
[381052739,1755977432242,-300.0,0.00024999,2]
[381052741,1755977432251,-300.0,0.00024999,2]
[381052742,1755977432260,-1200.0,0.00024999,2]
[381052745,1755977432270,-25319.84444641,0.00025,2]
[381052746,1755977432284,-1082.27494397,0.00025,2]
[381052747,1755977432302,-16229.39904309,0.00025,2]
[381052758,1755977438040,-1238.34870383,0.00025,2]
[381052759,1755977438052,-20270.44727005,0.00025,2]
[381052760,1755977438095,-40740.2477231,0.00025,2]
[381052761,1755977438107,-3505.2267423,0.00025,2]
[381052762,1755977438152,-19043.35007816,0.00025,2]
[381052763,1755977438162,-150.999999,0.00025,5]
[381052764,1755977438172,-151.0,0.00025,2]
[381052765,1755977438181,-300.0,0.00027082,2]
[381052766,1755977438191,-1600.0,0.00027205,2]
[381052767,1755977438200,-192.40341798,0.00027511,5]
[381052768,1755977438209,-199.0,0.00028433,10]
[381052769,1755977438219,-29.28944147,0.00028533,10]
[381052770,1755977438228,-232.37252479,0.00028939,2]
[381052771,1755977438238,-5000.0,0.0002894,2]
[381052772,1755977438247,-324.66,0.00029229,3]
[381052773,1755977438260,-250.98267212,0.00029232,2]
[381052774,1755977438270,-500.0,0.00029232,2]
[381052775,1755977438279,-256.62932179,0.00029232,2]
[381052776,1755977438288,-1883.09943776,0.00029238,2]
[381052777,1755977438297,-1450107.42965255,0.00029239,20]
[381052778,1755977438307,-395.50999033,0.00029239,2]
[381052780,1755977438316,-698.61212129,0.00029239,2]
[381052782,1755977438325,-500.0,0.00029273,5]
[381052784,1755977438334,-500.0,0.00029273,5]
[381052785,1755977438343,-902.41,0.000293,7]
[381052786,1755977438353,-15867.31,0.000293,2]
[381052788,1755977438363,-450.57,0.000293,7]
[381052789,1755977438372,-1000.0,0.00029821,5]
[381052790,1755977438382,-1000.0,0.00029821,5]
[381052792,1755977438391,-80192.68929571,0.0002999,2]
[381052794,1755977438400,-640.75815153,0.0003,4]
[381052796,1755977438410,-160.0,0.000302,2]
[381052798,1755977438419,-301.64989469,0.00030259,13]
[381052800,1755977438429,-1500.0,0.00030368,5]
[381052802,1755977438438,-961.5748825,0.00030368,5]
[381052804,1755977438448,-168.0,0.00030385,2]
[381052805,1755977438457,-260.0,0.00030748,2]
[381052807,1755977438467,-2000.0,0.00030916,5]
[381052808,1755977438476,-156.0,0.00031,120]
[381052809,1755977438486,-168.0,0.00031292,2]
[381052810,1755977438495,-301.64989469,0.00031986,17]
[381052811,1755977438504,-168.0,0.00032157,2]
[381052812,1755977438513,-168.0,0.00032377,2]
[381052813,1755977438523,-194.43004113,0.0003288,30]
[381052814,1755977438532,-194.43,0.0003288,30]
[381052815,1755977438541,-161.00329835,0.0003288,30]
[381052816,1755977438551,-161.00329835,0.0003288,30]
[381052817,1755977438560,-161.0,0.0003288,30]
[381052818,1755977438570,-168.0,0.00033252,2]
[381052819,1755977438580,-156.0,0.000335,120]
[381052820,1755977438589,-301.64989469,0.00033712,21]
[381052821,1755977438598,-450.57,0.000338,7]
[381052822,1755977438607,-153.0,0.00035079,30]
[381052823,1755977438617,-581.3595559,0.00035086,30]
[381052824,1755977438627,-301.64989469,0.00035439,24]
[381052825,1755977438636,-156.0,0.00036,120]
[381052826,1755977438646,-408.0,0.00036234,2]
[381052827,1755977438656,-2520.749,0.00036649,7]
[381052828,1755977438665,-15867.31,0.000367,14]
[381052829,1755977438675,-301.64989469,0.00037166,28]
[381052830,1755977438685,-902.41,0.000372,14]
[381052831,1755977438694,-2006.19374963,0.00038,30]
[381052832,1755977438703,-156.0,0.000386,120]
[381052833,1755977438712,-301.64989469,0.00038892,32]
[381052834,1755977438722,-76430.54391878,0.000389,60]
[381052835,1755977438732,-408.0,0.00039234,2]
[381052836,1755977438741,-156.0,0.000411,120]
[381052837,1755977438750,-500.0,0.00042234,2]
[381052838,1755977438759,-408.0,0.00042234,2]
[381052839,1755977438769,-301.64989469,0.00042345,39]
[381052840,1755977438778,-500.0,0.00042508,2]
[381052841,1755977438788,-500.0,0.00042782,2]
[381052842,1755977438797,-500.0,0.00043056,2]
[381052843,1755977438807,-515.53125299,0.0004333,2]
[381052844,1755977438816,-450.57,0.000434,7]
[381052845,1755977438825,-156.0,0.000436,120]
[381052846,1755977438834,-18553.0857991,0.00044,120]
[381052847,1755977438843,-301.64989469,0.00044072,43]
[381052848,1755977438854,-1200.0,0.00044534,5]
[381052849,1755977438863,-50000.0,0.00044537,2]
[381052850,1755977438872,-484.2445147,0.00044987,90]
[381052851,1755977438882,-6919.56301401,0.00045,2]
[381052852,1755977438891,-259.305,0.00045003,72]
[381052853,1755977438900,-408.0,0.00045234,2]
[381052854,1755977438910,-301.64989469,0.00045798,47]
[381052855,1755977438920,-15867.31,0.000458,14]
[381052856,1755977438929,-156.0,0.000461,120]
[381052857,1755977438939,-902.41,0.000467,14]
[381052858,1755977438948,-301.64989469,0.00047525,50]
[381052859,1755977438958,-600.0,0.00047786,60]
[381052860,1755977438967,-408.0,0.00048234,2]
[381052861,1755977438977,-500.0,0.0004826,30]
[381052862,1755977438986,-600.0,0.00048334,60]
[381052863,1755977438996,-500.0,0.00048393,30]
[381052864,1755977439005,-156.0,0.000486,120]
[381052865,1755977439015,-600.0,0.00048768,2]
[381052866,1755977439024,-200.0,0.0004879,120]
[381052867,1755977439033,-251.25963986,0.0004879,5]
[381052868,1755977439042,-600.0,0.00048882,60]
[381052869,1755977439052,-323.98871816,0.00049065,30]
[381052870,1755977439061,-301.64989469,0.00049251,54]
[381052871,1755977439071,-600.0,0.00049276,2]
[381052872,1755977439080,-300.0,0.00049337,90]
[381052873,1755977439089,-151.0,0.00049337,90]
[381052874,1755977439098,-151.0,0.00049337,90]
[381052875,1755977439107,-151.0,0.00049337,90]
[381052876,1755977439116,-500.0,0.00049337,90]
[381052877,1755977439125,-181.08010149,0.00049337,90]
[381052878,1755977439135,-300.0,0.00049337,90]
[381052879,1755977439144,-300.0,0.00049337,90]
[381052880,1755977439153,-250.05468189,0.00049337,90]
[381052881,1755977439163,-19187.29552238,0.00049337,90]
[381052882,1755977439174,-450.57,0.000494,7]
[381052883,1755977439184,-600.0,0.0004943,60]
[381052884,1755977439193,-300.0,0.00049725,60]
[381052885,1755977439202,-151.0,0.00049725,60]
[381052886,1755977439213,-151.0,0.00049725,60]
[381052887,1755977439223,-151.0,0.00049725,60]
[381052888,1755977439317,-500.0,0.00049725,60]
[381052889,1755977439327,-174.61919141,0.00049725,60]
[381052890,1755977439338,-300.0,0.00049725,60]
[381052891,1755977439347,-300.0,0.00049725,60]
[381052892,1755977439357,-250.0,0.00049725,60]
[381052893,1755977439367,-18502.69577858,0.00049725,60]
[381052894,1755977439376,-600.0,0.00049784,2]
[381052895,1755977439386,-300.0,0.00049863,60]
[381052896,1755977439395,-151.0,0.00049863,60]
[381052897,1755977439405,-151.0,0.00049863,60]
[381052898,1755977439414,-151.0,0.00049863,60]
[381052899,1755977439423,-500.0,0.00049863,60]
[381052900,1755977439432,-168.3888056,0.00049863,60]
[381052901,1755977439441,-300.0,0.00049863,60]
[381052902,1755977439451,-300.0,0.00049863,60]
[381052903,1755977439460,-250.0,0.00049863,60]
[381052904,1755977439469,-17842.522448,0.00049863,60]
[381052905,1755977439478,-600.0,0.00049978,60]
[381052906,1755977439488,-300.0,0.00049999,30]
[381052907,1755977439498,-300.0,0.00049999,120]
[381052908,1755977439507,-151.0,0.00049999,30]
[381052909,1755977439516,-151.0,0.00049999,120]
[381052910,1755977439525,-151.0,0.00049999,30]
[381052911,1755977439534,-500.0,0.00049999,30]
[381052912,1755977439543,-151.0,0.00049999,30]
[381052913,1755977439552,-151.0,0.00049999,120]
[381052914,1755977439562,-151.0,0.00049999,120]
[381052915,1755977439571,-500.0,0.00049999,120]
[381052916,1755977439580,-156.587,0.00049999,30]
[381052917,1755977439590,-162.380719,0.00049999,120]
[381052918,1755977439599,-300.0,0.00049999,30]
[381052919,1755977439608,-300.0,0.00049999,120]
[381052920,1755977439618,-300.0,0.00049999,30]
[381052921,1755977439628,-300.0,0.00049999,120]
[381052923,1755977439637,-250.0,0.00049999,30]
[381052925,1755977439646,-250.0,0.00049999,120]
[381052926,1755977439656,-1888.00000001,0.00049999,30]
[381052928,1755977439667,-16592.0,0.00049999,30]
[381052929,1755977439676,-17205.904,0.00049999,120]
[381052930,1755977439686,-500.0,0.00050217,10]
[381052931,1755977439695,-500.0,0.00050217,10]
[381052932,1755977439704,-175.16317157,0.00050217,10]
[381052933,1755977439714,-500.0,0.00050217,10]
[381052934,1755977439724,-500.0,0.00050217,10]
[381052935,1755977439733,-1131.95382888,0.00050292,2]
[381052936,1755977439743,-160.0,0.000504,3]
[381052937,1755977439753,-160.0,0.000504,5]
[381052938,1755977439763,-15867.31,0.000504,14]
[381052939,1755977439773,-160.9697672,0.00050438,30]
[381052940,1755977439783,-3084.17493577,0.000505,120]
[381052941,1755977439793,-600.0,0.00050526,60]
[381052943,1755977439803,-3355.59230129,0.000506,10]
[381052944,1755977439812,-500.0,0.00050673,10]
[381052945,1755977439820,-500.0,0.00050673,10]
[381052946,1755977439828,-500.0,0.00050673,10]
[381052947,1755977439837,-167749.774399,0.0005069,4]
[381052948,1755977439845,-500.0,0.00050699,120]
[381052950,1755977439855,-151.0,0.00050699,120]
[381052952,1755977439864,-300.0,0.00050699,120]
[381052954,1755977439874,-151.0,0.00050699,120]
[381052956,1755977439882,-151.0,0.00050699,120]